Workbook

Sheet مستندات
A1: ت | B1: الاسم | C1: الكود | D1: رقم مستند التحميل | E1: تاريخه | F1: رقم مستند التفريغ | G1: تاريخه | H1: رقم امر التشغيل | I1: تاريخه | J1: مبلغ المنافسيت | K1: رقمه | L1: محور النقل | M1: الكمية المستلمة (طن) | N1: الكمية المسلمة (طن) | O1: السعر ($) | P1: أجور النقل | Q1: الرسوم الكمركية (د.ع)
A2: 1 | J2: 50 | M2: =N2-13 -> 34937 | N2: 34950 | O2: 44 | P2: =N2*O2 -> 1537800 | Q2: 2000
A3: =MAX(A$2:A2)+1 -> 2 | J3: 50 | M3: =N3-13 -> 32872 | N3: 32885 | O3: 44 | P3: 1446940 | Q3: 2000
A4: =MAX(A$2:A3)+1 -> 3 | J4: 50 | M4: 36077 | N4: 36090 | O4: 44 | P4: 1587960 | Q4: 2000 | R4: كل 10 أسماء
A5: =MAX(A$2:A4)+1 -> 4 | J5: 50 | M5: 29447 | N5: 29460 | O5: 44 | P5: 1296240 | Q5: 2000 | R5: في ورقة واحدة
A6: =MAX(A$2:A5)+1 -> 5 | J6: 50 | M6: 34261 | N6: 34274 | O6: 44 | P6: 1508056 | Q6: 2000 | R6: يظهر الجمع
A7: =MAX(A$2:A6)+1 -> 6 | J7: 50 | M7: 35187 | N7: 35200 | O7: 44 | P7: 1548800 | Q7: 2000 | R7: وراس الجدول
A8: =MAX(A$2:A7)+1 -> 7 | J8: 50 | M8: 34527 | N8: 34540 | O8: 44 | P8: 1519760 | Q8: 2000 | R8: في كل ورقة
A9: =MAX(A$2:A8)+1 -> 8 | J9: 50 | M9: 33335 | N9: 33348 | O9: 44 | P9: 1467312 | Q9: 2000
A10: =MAX(A$2:A9)+1 -> 9 | J10: 50 | M10: 35427 | N10: 35440 | O10: 44 | P10: 1559360 | Q10: 2000
A11: =MAX(A$2:A10)+1 -> 10 | J11: 50 | M11: 34937 | N11: 34950 | O11: 44 | P11: 1537800 | Q11: 2000
A12: =MAX(A$2:A11)+1 -> 11 | J12: 50 | M12: 29629 | N12: 29642 | O12: 44 | P12: =N12*O12 -> 1304248 | Q12: 2000
A13: =MAX(A$2:A12)+1 -> 12 | J13: 50 | M13: 29397 | N13: 29410 | O13: 44 | P13: 1294040 | Q13: 2000
A14: =MAX(A$2:A13)+1 -> 13 | J14: 50 | M14: 29629 | N14: 29642 | O14: 44 | P14: 1304248 | Q14: 2000
A15: =MAX(A$2:A14)+1 -> 14 | J15: 50 | M15: 30555 | N15: 30568 | O15: 44 | P15: 1344992 | Q15: 2000
A16: =MAX(A$2:A15)+1 -> 15 | J16: 50 | M16: 30037 | N16: 30050 | O16: 44 | P16: 1322200 | Q16: 2000
A17: 16 | J17: 50 | M17: 29987 | N17: 30000 | O17: 44 | P17: 1320000 | Q17: 2000
A18: =MAX(A$2:A17)+1 -> 17 | J18: 50 | M18: 29987 | N18: 30000 | O18: 44 | P18: 1320000 | Q18: 2000
A19: =MAX(A$2:A18)+1 -> 18 | J19: 50 | M19: 29987 | N19: 30000 | O19: 44 | P19: 1320000 | Q19: 2000
A20: =MAX(A$2:A19)+1 -> 19 | J20: 50 | M20: 29987 | N20: 30000 | O20: 44 | P20: 1320000 | Q20: 2000
A21: =MAX(A$2:A20)+1 -> 20 | J21: 50 | M21: 29987 | N21: 30000 | O21: 44 | P21: 1320000 | Q21: 2000
A22: =MAX(A$2:A21)+1 -> 21 | J22: 50 | M22: 29987 | N22: 30000 | O22: 44 | P22: =N22*O22 -> 1320000 | Q22: 2000
A23: =MAX(A$2:A22)+1 -> 22 | J23: 50 | M23: 29987 | N23: 30000 | O23: 44 | P23: 1320000 | Q23: 2000
A24: =MAX(A$2:A23)+1 -> 23 | J24: 50 | M24: 29987 | N24: 30000 | O24: 44 | P24: 1320000 | Q24: 2000
A25: =MAX(A$2:A24)+1 -> 24 | J25: 50 | M25: 29987 | N25: 30000 | O25: 44 | P25: 1320000 | Q25: 2000
A26: =MAX(A$2:A25)+1 -> 25 | J26: 50 | M26: 29987 | N26: 30000 | O26: 44 | P26: 1320000 | Q26: 2000
A27: =MAX(A$2:A26)+1 -> 26 | J27: 50 | M27: 29987 | N27: 30000 | O27: 44 | P27: 1320000 | Q27: 2000
A28: =MAX(A$2:A27)+1 -> 27 | J28: 50 | M28: 29987 | N28: 30000 | O28: 44 | P28: 1320000 | Q28: 2000
A29: =MAX(A$2:A28)+1 -> 28 | J29: 50 | M29: 29987 | N29: 30000 | O29: 44 | P29: 1320000 | Q29: 2000
A30: =MAX(A$2:A29)+1 -> 29 | J30: 50 | M30: 29987 | N30: 30000 | O30: 44 | P30: 1320000 | Q30: 2000
A31: =MAX(A$2:A30)+1 -> 30 | J31: 50 | M31: 29987 | N31: 30000 | O31: 44 | P31: 1320000 | Q31: 2000
A32: 31 | J32: 50 | M32: 29987 | N32: 30000 | O32: 44 | P32: 1320000 | Q32: 2000
A33: =MAX(A$2:A32)+1 -> 32 | J33: 50 | M33: 29987 | N33: 30000 | O33: 44 | P33: 1320000 | Q33: 2000
A34: =MAX(A$2:A33)+1 -> 33 | J34: 50 | M34: 29987 | N34: 30000 | O34: 44 | P34: 1320000 | Q34: 2000
A35: =MAX(A$2:A34)+1 -> 34 | J35: 50 | M35: 29987 | N35: 30000 | O35: 44 | P35: 1320000 | Q35: 2000
A36: =MAX(A$2:A35)+1 -> 35 | J36: 50 | M36: 29987 | N36: 30000 | O36: 44 | P36: 1320000 | Q36: 2000
A37: =MAX(A$2:A36)+1 -> 36 | J37: 50 | M37: 29987 | N37: 30000 | O37: 44 | P37: 1320000 | Q37: 2000
A38: =MAX(A$2:A37)+1 -> 37 | J38: 50 | M38: 29987 | N38: 30000 | O38: 44 | P38: 1320000 | Q38: 2000
A39: =MAX(A$2:A38)+1 -> 38 | J39: 50 | M39: 29987 | N39: 30000 | O39: 44 | P39: 1320000 | Q39: 2000
A40: =MAX(A$2:A39)+1 -> 39 | J40: 50 | M40: 29987 | N40: 30000 | O40: 44 | P40: 1320000 | Q40: 2000
A41: =MAX(A$2:A40)+1 -> 40 | J41: 50 | M41: 29987 | N41: 30000 | O41: 44 | P41: 1320000 | Q41: 2000
A42: =MAX(A$2:A41)+1 -> 41 | J42: 50 | M42: 29987 | N42: 30000 | O42: 44 | P42: 1320000 | Q42: 2000
A43: =MAX(A$2:A42)+1 -> 42 | J43: 50 | M43: 29987 | N43: 30000 | O43: 44 | P43: 1320000 | Q43: 2000
A44: =MAX(A$2:A43)+1 -> 43 | J44: 50 | M44: 29987 | N44: 30000 | O44: 44 | P44: 1320000 | Q44: 2000
A45: =MAX(A$2:A44)+1 -> 44 | J45: 50 | M45: 29987 | N45: 30000 | O45: 44 | P45: 1320000 | Q45: 2000
A46: =MAX(A$2:A45)+1 -> 45 | J46: 50 | M46: 29987 | N46: 30000 | O46: 44 | P46: 1320000 | Q46: 2000
A47: 46 | J47: 50 | M47: 29987 | N47: 30000 | O47: 44 | P47: 1320000 | Q47: 2000
A48: =MAX(A$2:A47)+1 -> 47 | J48: 50 | M48: 29987 | N48: 30000 | O48: 44 | P48: 1320000 | Q48: 2000
A49: =MAX(A$2:A48)+1 -> 48 | J49: 50 | M49: 29987 | N49: 30000 | O49: 44 | P49: 1320000 | Q49: 2000
A50: =MAX(A$2:A49)+1 -> 49 | J50: 50 | M50: 29987 | N50: 30000 | O50: 44 | P50: 1320000 | Q50: 2000
A51: =MAX(A$2:A50)+1 -> 50 | J51: 50 | M51: 29987 | N51: 30000 | O51: 44 | P51: 1320000 | Q51: 2000
A52: =MAX(A$2:A51)+1 -> 51 | J52: 50 | M52: 29987 | N52: 30000 | O52: 44 | P52: 1320000 | Q52: 2000
A53: =MAX(A$2:A52)+1 -> 52 | J53: 50 | M53: 29987 | N53: 30000 | O53: 44 | P53: 1320000 | Q53: 2000
A54: =MAX(A$2:A53)+1 -> 53 | J54: 50 | M54: 29987 | N54: 30000 | O54: 44 | P54: 1320000 | Q54: 2000
A55: =MAX(A$2:A54)+1 -> 54 | J55: 50 | M55: 29987 | N55: 30000 | O55: 44 | P55: 1320000 | Q55: 2000
A56: =MAX(A$2:A55)+1 -> 55 | J56: 50 | M56: 29987 | N56: 30000 | O56: 44 | P56: 1320000 | Q56: 2000
A57: =MAX(A$2:A56)+1 -> 56 | J57: 50 | M57: 29987 | N57: 30000 | O57: 44 | P57: 1320000 | Q57: 2000
A58: =MAX(A$2:A57)+1 -> 57 | J58: 50 | M58: 29987 | N58: 30000 | O58: 44 | P58: 1320000 | Q58: 2000
A59: =MAX(A$2:A58)+1 -> 58 | J59: 50 | M59: 29987 | N59: 30000 | O59: 44 | P59: 1320000 | Q59: 2000
A60: =MAX(A$2:A59)+1 -> 59 | J60: 50 | M60: 29987 | N60: 30000 | O60: 44 | P60: 1320000 | Q60: 2000
A61: =MAX(A$2:A60)+1 -> 60 | J61: 50 | M61: 29987 | N61: 30000 | O61: 44 | P61: 1320000 | Q61: 2000
A62: 61 | J62: 50 | M62: 29987 | N62: 30000 | O62: 44 | P62: 1320000 | Q62: 2000
A63: =MAX(A$2:A62)+1 -> 62 | J63: 50 | M63: 29987 | N63: 30000 | O63: 44 | P63: 1320000 | Q63: 2000
A64: =MAX(A$2:A63)+1 -> 63 | J64: 50 | M64: 29987 | N64: 30000 | O64: 44 | P64: 1320000 | Q64: 2000
A65: =MAX(A$2:A64)+1 -> 64 | J65: 50 | M65: 29987 | N65: 30000 | O65: 44 | P65: 1320000 | Q65: 2000
A66: =MAX(A$2:A65)+1 -> 65 | J66: 50 | M66: 29987 | N66: 30000 | O66: 44 | P66: 1320000 | Q66: 2000
A67: =MAX(A$2:A66)+1 -> 66 | J67: 50 | M67: =N67-13 -> 29987 | N67: 30000 | O67: 44 | P67: 1320000 | Q67: 2000
A68: =MAX(A$2:A67)+1 -> 67 | J68: 50 | M68: 29987 | N68: 30000 | O68: 44 | P68: 1320000 | Q68: 2000
A69: =MAX(A$2:A68)+1 -> 68 | J69: 50 | M69: 29987 | N69: 30000 | O69: 44 | P69: 1320000 | Q69: 2000
A70: =MAX(A$2:A69)+1 -> 69 | J70: 50 | M70: 29987 | N70: 30000 | O70: 44 | P70: 1320000 | Q70: 2000
A71: =MAX(A$2:A70)+1 -> 70 | J71: 50 | M71: 29987 | N71: 30000 | O71: 44 | P71: 1320000 | Q71: 2000
A72: =MAX(A$2:A71)+1 -> 71 | J72: 50 | M72: 29987 | N72: 30000 | O72: 44 | P72: 1320000 | Q72: 2000
A73: =MAX(A$2:A72)+1 -> 72 | J73: 50 | M73: 29987 | N73: 30000 | O73: 44 | P73: 1320000 | Q73: 2000
A74: =MAX(A$2:A73)+1 -> 73 | J74: 50 | M74: 29987 | N74: 30000 | O74: 44 | P74: 1320000 | Q74: 2000
A75: =MAX(A$2:A74)+1 -> 74 | J75: 50 | M75: 29987 | N75: 30000 | O75: 44 | P75: 1320000 | Q75: 2000
A76: =MAX(A$2:A75)+1 -> 75 | J76: 50 | M76: 29987 | N76: 30000 | O76: 44 | P76: 1320000 | Q76: 2000
A77: 76 | J77: 50 | M77: 29987 | N77: 30000 | O77: 44 | P77: 1320000 | Q77: 2000
A78: =MAX(A$2:A77)+1 -> 77 | J78: 50 | M78: 29987 | N78: 30000 | O78: 44 | P78: 1320000 | Q78: 2000
A79: =MAX(A$2:A78)+1 -> 78 | J79: 50 | M79: 29987 | N79: 30000 | O79: 44 | P79: 1320000 | Q79: 2000
A80: =MAX(A$2:A79)+1 -> 79 | J80: 50 | M80: 29987 | N80: 30000 | O80: 44 | P80: 1320000 | Q80: 2000
A81: =MAX(A$2:A80)+1 -> 80 | J81: 50 | M81: 29987 | N81: 30000 | O81: 44 | P81: 1320000 | Q81: 2000
A82: =MAX(A$2:A81)+1 -> 81 | J82: 50 | M82: 29987 | N82: 30000 | O82: 44 | P82: 1320000 | Q82: 2000
A83: =MAX(A$2:A82)+1 -> 82 | J83: 50 | M83: 29987 | N83: 30000 | O83: 44 | P83: 1320000 | Q83: 2000
A84: =MAX(A$2:A83)+1 -> 83 | J84: 50 | M84: 29987 | N84: 30000 | O84: 44 | P84: 1320000 | Q84: 2000
A85: =MAX(A$2:A84)+1 -> 84 | J85: 50 | M85: 29987 | N85: 30000 | O85: 44 | P85: 1320000 | Q85: 2000
A86: =MAX(A$2:A85)+1 -> 85 | J86: 50 | M86: 29987 | N86: 30000 | O86: 44 | P86: =N86*O86 -> 1320000 | Q86: 2000
A87: =MAX(A$2:A86)+1 -> 86 | J87: 50 | M87: 29987 | N87: 30000 | O87: 44 | P87: 1320000 | Q87: 2000
A88: =MAX(A$2:A87)+1 -> 87 | J88: 50 | M88: 29987 | N88: 30000 | O88: 44 | P88: 1320000 | Q88: 2000
A89: =MAX(A$2:A88)+1 -> 88 | J89: 50 | M89: 29987 | N89: 30000 | O89: 44 | P89: 1320000 | Q89: 2000
A90: =MAX(A$2:A89)+1 -> 89 | J90: 50 | M90: 29987 | N90: 30000 | O90: 44 | P90: 1320000 | Q90: 2000
A91: =MAX(A$2:A90)+1 -> 90 | J91: 50 | M91: 29987 | N91: 30000 | O91: 44 | P91: 1320000 | Q91: 2000
A92: 91 | J92: 50 | M92: 29987 | N92: 30000 | O92: 44 | P92: 1320000 | Q92: 2000
A93: =MAX(A$2:A92)+1 -> 92 | J93: 50 | M93: 29987 | N93: 30000 | O93: 44 | P93: 1320000 | Q93: 2000
A94: =MAX(A$2:A93)+1 -> 93 | J94: 50 | M94: 29987 | N94: 30000 | O94: 44 | P94: 1320000 | Q94: 2000
A95: =MAX(A$2:A94)+1 -> 94 | J95: 50 | M95: 29987 | N95: 30000 | O95: 44 | P95: 1320000 | Q95: 2000
A96: =MAX(A$2:A95)+1 -> 95 | J96: 50 | M96: 29987 | N96: 30000 | O96: 44 | P96: 1320000 | Q96: 2000
A97: =MAX(A$2:A96)+1 -> 96 | J97: 50 | M97: 29987 | N97: 30000 | O97: 44 | P97: 1320000 | Q97: 2000
A98: =MAX(A$2:A97)+1 -> 97 | J98: 50 | M98: 29987 | N98: 30000 | O98: 44 | P98: 1320000 | Q98: 2000
A99: =MAX(A$2:A98)+1 -> 98 | J99: 50 | M99: 29987 | N99: 30000 | O99: 44 | P99: 1320000 | Q99: 2000
A100: =MAX(A$2:A99)+1 -> 99 | J100: 50 | M100: 29987 | N100: 30000 | O100: 44 | P100: 1320000 | Q100: 2000
A101: =MAX(A$2:A100)+1 -> 100 | J101: 50 | M101: 29987 | N101: 30000 | O101: 44 | P101: 1320000 | Q101: 2000
A102: =MAX(A$2:A101)+1 -> 101 | J102: 50 | M102: 29987 | N102: 30000 | O102: 44 | P102: 1320000 | Q102: 2000
A103: =MAX(A$2:A102)+1 -> 102 | J103: 50 | M103: 29987 | N103: 30000 | O103: 44 | P103: 1320000 | Q103: 2000
A104: =MAX(A$2:A103)+1 -> 103 | J104: 50 | M104: 29987 | N104: 30000 | O104: 44 | P104: 1320000 | Q104: 2000
A105: =MAX(A$2:A104)+1 -> 104 | J105: 50 | M105: 29987 | N105: 30000 | O105: 44 | P105: 1320000 | Q105: 2000
A106: =MAX(A$2:A105)+1 -> 105 | J106: 50 | M106: 29987 | N106: 30000 | O106: 44 | P106: 1320000 | Q106: 2000
A107: 106 | J107: 50 | M107: 29987 | N107: 30000 | O107: 44 | P107: 1320000 | Q107: 2000
A108: =MAX(A$2:A107)+1 -> 107 | J108: 50 | M108: 29987 | N108: 30000 | O108: 44 | P108: 1320000 | Q108: 2000
A109: =MAX(A$2:A108)+1 -> 108 | J109: 50 | M109: 29987 | N109: 30000 | O109: 44 | P109: 1320000 | Q109: 2000
A110: =MAX(A$2:A109)+1 -> 109 | J110: 50 | M110: 29987 | N110: 30000 | O110: 44 | P110: 1320000 | Q110: 2000
A111: =MAX(A$2:A110)+1 -> 110 | J111: 50 | M111: 29987 | N111: 30000 | O111: 44 | P111: 1320000 | Q111: 2000
A112: =MAX(A$2:A111)+1 -> 111 | J112: 50 | M112: 29987 | N112: 30000 | O112: 44 | P112: 1320000 | Q112: 2000
A113: =MAX(A$2:A112)+1 -> 112 | J113: 50 | M113: 29987 | N113: 30000 | O113: 44 | P113: 1320000 | Q113: 2000
A114: =MAX(A$2:A113)+1 -> 113 | J114: 50 | M114: 29987 | N114: 30000 | O114: 44 | P114: 1320000 | Q114: 2000
A115: =MAX(A$2:A114)+1 -> 114 | J115: 50 | M115: 29987 | N115: 30000 | O115: 44 | P115: 1320000 | Q115: 2000
A116: =MAX(A$2:A115)+1 -> 115 | J116: 50 | M116: 29987 | N116: 30000 | O116: 44 | P116: 1320000 | Q116: 2000
A117: =MAX(A$2:A116)+1 -> 116 | J117: 50 | M117: 29987 | N117: 30000 | O117: 44 | P117: 1320000 | Q117: 2000
A118: =MAX(A$2:A117)+1 -> 117 | J118: 50 | M118: 29987 | N118: 30000 | O118: 44 | P118: 1320000 | Q118: 2000
A119: =MAX(A$2:A118)+1 -> 118 | J119: 50 | M119: 29987 | N119: 30000 | O119: 44 | P119: 1320000 | Q119: 2000
A120: =MAX(A$2:A119)+1 -> 119 | J120: 50 | M120: 29987 | N120: 30000 | O120: 44 | P120: 1320000 | Q120: 2000
A121: =MAX(A$2:A120)+1 -> 120 | J121: 50 | M121: 29987 | N121: 30000 | O121: 44 | P121: 1320000 | Q121: 2000
A122: 121 | J122: 50 | M122: 29987 | N122: 30000 | O122: 44 | P122: 1320000 | Q122: 2000
A123: =MAX(A$2:A122)+1 -> 122 | J123: 50 | M123: 29987 | N123: 30000 | O123: 44 | P123: 1320000 | Q123: 2000
A124: =MAX(A$2:A123)+1 -> 123 | J124: 50 | M124: 29987 | N124: 30000 | O124: 44 | P124: 1320000 | Q124: 2000
A125: =MAX(A$2:A124)+1 -> 124 | J125: 50 | M125: 29987 | N125: 30000 | O125: 44 | P125: 1320000 | Q125: 2000
A126: =MAX(A$2:A125)+1 -> 125 | J126: 50 | M126: 29987 | N126: 30000 | O126: 44 | P126: 1320000 | Q126: 2000
A127: =MAX(A$2:A126)+1 -> 126 | J127: 50 | M127: 29987 | N127: 30000 | O127: 44 | P127: 1320000 | Q127: 2000
A128: =MAX(A$2:A127)+1 -> 127 | J128: 50 | M128: 29987 | N128: 30000 | O128: 44 | P128: 1320000 | Q128: 2000
A129: =MAX(A$2:A128)+1 -> 128 | J129: 50 | M129: 29987 | N129: 30000 | O129: 44 | P129: 1320000 | Q129: 2000
A130: =MAX(A$2:A129)+1 -> 129 | J130: 50 | M130: 29987 | N130: 30000 | O130: 44 | P130: 1320000 | Q130: 2000
A131: =MAX(A$2:A130)+1 -> 130 | J131: 50 | M131: =N131-13 -> 29987 | N131: 30000 | O131: 44 | P131: 1320000 | Q131: 2000
A132: =MAX(A$2:A131)+1 -> 131 | J132: 50 | M132: 29987 | N132: 30000 | O132: 44 | P132: 1320000 | Q132: 2000
A133: =MAX(A$2:A132)+1 -> 132 | J133: 50 | M133: 29987 | N133: 30000 | O133: 44 | P133: 1320000 | Q133: 2000
A134: =MAX(A$2:A133)+1 -> 133 | J134: 50 | M134: 29987 | N134: 30000 | O134: 44 | P134: 1320000 | Q134: 2000
A135: =MAX(A$2:A134)+1 -> 134 | J135: 50 | M135: 29987 | N135: 30000 | O135: 44 | P135: 1320000 | Q135: 2000
A136: =MAX(A$2:A135)+1 -> 135 | J136: 50 | M136: 29987 | N136: 30000 | O136: 44 | P136: 1320000 | Q136: 2000
A137: 136 | J137: 50 | M137: 29987 | N137: 30000 | O137: 44 | P137: 1320000 | Q137: 2000
A138: =MAX(A$2:A137)+1 -> 137 | J138: 50 | M138: 29987 | N138: 30000 | O138: 44 | P138: 1320000 | Q138: 2000
A139: =MAX(A$2:A138)+1 -> 138 | J139: 50 | M139: 29987 | N139: 30000 | O139: 44 | P139: 1320000 | Q139: 2000
A140: =MAX(A$2:A139)+1 -> 139 | J140: 50 | M140: 29987 | N140: 30000 | O140: 44 | P140: 1320000 | Q140: 2000
A141: =MAX(A$2:A140)+1 -> 140 | J141: 50 | M141: 29987 | N141: 30000 | O141: 44 | P141: 1320000 | Q141: 2000
A142: =MAX(A$2:A141)+1 -> 141 | J142: 50 | M142: 29987 | N142: 30000 | O142: 44 | P142: 1320000 | Q142: 2000
A143: =MAX(A$2:A142)+1 -> 142 | J143: 50 | M143: 29987 | N143: 30000 | O143: 44 | P143: 1320000 | Q143: 2000
A144: =MAX(A$2:A143)+1 -> 143 | J144: 50 | M144: 29987 | N144: 30000 | O144: 44 | P144: 1320000 | Q144: 2000
A145: =MAX(A$2:A144)+1 -> 144 | J145: 50 | M145: 29987 | N145: 30000 | O145: 44 | P145: 1320000 | Q145: 2000
A146: =MAX(A$2:A145)+1 -> 145 | J146: 50 | M146: 29987 | N146: 30000 | O146: 44 | P146: 1320000 | Q146: 2000
A147: =MAX(A$2:A146)+1 -> 146 | J147: 50 | M147: 29987 | N147: 30000 | O147: 44 | P147: 1320000 | Q147: 2000
A148: =MAX(A$2:A147)+1 -> 147 | J148: 50 | M148: 29987 | N148: 30000 | O148: 44 | P148: 1320000 | Q148: 2000
A149: =MAX(A$2:A148)+1 -> 148 | J149: 50 | M149: 29987 | N149: 30000 | O149: 44 | P149: 1320000 | Q149: 2000
A150: =MAX(A$2:A149)+1 -> 149 | J150: 50 | M150: 29987 | N150: 30000 | O150: 44 | P150: =N150*O150 -> 1320000 | Q150: 2000
A151: =MAX(A$2:A150)+1 -> 150 | J151: 50 | M151: 29987 | N151: 30000 | O151: 44 | P151: 1320000 | Q151: 2000
A152: 151 | J152: 50 | M152: 29987 | N152: 30000 | O152: 44 | P152: 1320000 | Q152: 2000
A153: =MAX(A$2:A152)+1 -> 152 | J153: 50 | M153: 29987 | N153: 30000 | O153: 44 | P153: 1320000 | Q153: 2000
A154: =MAX(A$2:A153)+1 -> 153 | J154: 50 | M154: 29987 | N154: 30000 | O154: 44 | P154: 1320000 | Q154: 2000
A155: =MAX(A$2:A154)+1 -> 154 | J155: 50 | M155: 29987 | N155: 30000 | O155: 44 | P155: 1320000 | Q155: 2000
A156: =MAX(A$2:A155)+1 -> 155 | J156: 50 | M156: 29987 | N156: 30000 | O156: 44 | P156: 1320000 | Q156: 2000
A157: =MAX(A$2:A156)+1 -> 156 | J157: 50 | M157: 29987 | N157: 30000 | O157: 44 | P157: 1320000 | Q157: 2000
A158: =MAX(A$2:A157)+1 -> 157 | J158: 50 | M158: 29987 | N158: 30000 | O158: 44 | P158: 1320000 | Q158: 2000
A159: =MAX(A$2:A158)+1 -> 158 | J159: 50 | M159: 29987 | N159: 30000 | O159: 44 | P159: 1320000 | Q159: 2000
A160: =MAX(A$2:A159)+1 -> 159 | J160: 50 | M160: 29987 | N160: 30000 | O160: 44 | P160: 1320000 | Q160: 2000
A161: =MAX(A$2:A160)+1 -> 160 | J161: 50 | M161: 29987 | N161: 30000 | O161: 44 | P161: 1320000 | Q161: 2000
A162: =MAX(A$2:A161)+1 -> 161 | J162: 50 | M162: 29987 | N162: 30000 | O162: 44 | P162: 1320000 | Q162: 2000
A163: =MAX(A$2:A162)+1 -> 162 | J163: 50 | M163: 29987 | N163: 30000 | O163: 44 | P163: 1320000 | Q163: 2000
A164: =MAX(A$2:A163)+1 -> 163 | J164: 50 | M164: 29987 | N164: 30000 | O164: 44 | P164: 1320000 | Q164: 2000
A165: =MAX(A$2:A164)+1 -> 164 | J165: 50 | M165: 29987 | N165: 30000 | O165: 44 | P165: 1320000 | Q165: 2000
A166: =MAX(A$2:A165)+1 -> 165 | J166: 50 | M166: 29987 | N166: 30000 | O166: 44 | P166: 1320000 | Q166: 2000
A167: 166 | J167: 50 | M167: 29987 | N167: 30000 | O167: 44 | P167: 1320000 | Q167: 2000
A168: =MAX(A$2:A167)+1 -> 167 | J168: 50 | M168: 29987 | N168: 30000 | O168: 44 | P168: 1320000 | Q168: 2000
A169: =MAX(A$2:A168)+1 -> 168 | J169: 50 | M169: 29987 | N169: 30000 | O169: 44 | P169: 1320000 | Q169: 2000
A170: =MAX(A$2:A169)+1 -> 169 | J170: 50 | M170: 29987 | N170: 30000 | O170: 44 | P170: 1320000 | Q170: 2000
A171: =MAX(A$2:A170)+1 -> 170 | J171: 50 | M171: 29987 | N171: 30000 | O171: 44 | P171: 1320000 | Q171: 2000
A172: =MAX(A$2:A171)+1 -> 171 | J172: 50 | M172: 29987 | N172: 30000 | O172: 44 | P172: 1320000 | Q172: 2000
A173: =MAX(A$2:A172)+1 -> 172 | J173: 50 | M173: 29987 | N173: 30000 | O173: 44 | P173: 1320000 | Q173: 2000
A174: =MAX(A$2:A173)+1 -> 173 | J174: 50 | M174: 29987 | N174: 30000 | O174: 44 | P174: 1320000 | Q174: 2000
A175: =MAX(A$2:A174)+1 -> 174 | J175: 50 | M175: 29987 | N175: 30000 | O175: 44 | P175: 1320000 | Q175: 2000
A176: =MAX(A$2:A175)+1 -> 175 | J176: 50 | M176: 29987 | N176: 30000 | O176: 44 | P176: 1320000 | Q176: 2000
A177: =MAX(A$2:A176)+1 -> 176 | J177: 50 | M177: 29987 | N177: 30000 | O177: 44 | P177: 1320000 | Q177: 2000
A178: =MAX(A$2:A177)+1 -> 177 | J178: 50 | M178: 29987 | N178: 30000 | O178: 44 | P178: 1320000 | Q178: 2000
A179: =MAX(A$2:A178)+1 -> 178 | J179: 50 | M179: 29987 | N179: 30000 | O179: 44 | P179: 1320000 | Q179: 2000
A180: =MAX(A$2:A179)+1 -> 179 | J180: 50 | M180: 29987 | N180: 30000 | O180: 44 | P180: 1320000 | Q180: 2000
A181: =MAX(A$2:A180)+1 -> 180 | J181: 50 | M181: 29987 | N181: 30000 | O181: 44 | P181: 1320000 | Q181: 2000
A182: 181 | J182: 50 | M182: 29987 | N182: 30000 | O182: 44 | P182: 1320000 | Q182: 2000
A183: =MAX(A$2:A182)+1 -> 182 | J183: 50 | M183: 29987 | N183: 30000 | O183: 44 | P183: 1320000 | Q183: 2000
A184: =MAX(A$2:A183)+1 -> 183 | J184: 50 | M184: 29987 | N184: 30000 | O184: 44 | P184: 1320000 | Q184: 2000
A185: =MAX(A$2:A184)+1 -> 184 | J185: 50 | M185: 29987 | N185: 30000 | O185: 44 | P185: 1320000 | Q185: 2000
A186: =MAX(A$2:A185)+1 -> 185 | J186: 50 | M186: 29987 | N186: 30000 | O186: 44 | P186: 1320000 | Q186: 2000
A187: =MAX(A$2:A186)+1 -> 186 | J187: 50 | M187: 29987 | N187: 30000 | O187: 44 | P187: 1320000 | Q187: 2000
A188: =MAX(A$2:A187)+1 -> 187 | J188: 50 | M188: 29987 | N188: 30000 | O188: 44 | P188: 1320000 | Q188: 2000
A189: =MAX(A$2:A188)+1 -> 188 | J189: 50 | M189: 29987 | N189: 30000 | O189: 44 | P189: 1320000 | Q189: 2000
A190: =MAX(A$2:A189)+1 -> 189 | J190: 50 | M190: 29987 | N190: 30000 | O190: 44 | P190: 1320000 | Q190: 2000
A191: =MAX(A$2:A190)+1 -> 190 | J191: 50 | M191: 29987 | N191: 30000 | O191: 44 | P191: 1320000 | Q191: 2000
A192: =MAX(A$2:A191)+1 -> 191 | J192: 50 | M192: 29987 | N192: 30000 | O192: 44 | P192: 1320000 | Q192: 2000
A193: =MAX(A$2:A192)+1 -> 192 | J193: 50 | M193: 29987 | N193: 30000 | O193: 44 | P193: 1320000 | Q193: 2000
A194: =MAX(A$2:A193)+1 -> 193 | J194: 50 | M194: 29987 | N194: 30000 | O194: 44 | P194: 1320000 | Q194: 2000
A195: =MAX(A$2:A194)+1 -> 194 | J195: 50 | M195: =N195-13 -> 29987 | N195: 30000 | O195: 44 | P195: 1320000 | Q195: 2000
A196: =MAX(A$2:A195)+1 -> 195 | J196: 50 | M196: 29987 | N196: 30000 | O196: 44 | P196: 1320000 | Q196: 2000
A197: 196 | J197: 50 | M197: 29987 | N197: 30000 | O197: 44 | P197: 1320000 | Q197: 2000
A198: =MAX(A$2:A197)+1 -> 197 | J198: 50 | M198: 29987 | N198: 30000 | O198: 44 | P198: 1320000 | Q198: 2000
A199: =MAX(A$2:A198)+1 -> 198 | J199: 50 | M199: 29987 | N199: 30000 | O199: 44 | P199: 1320000 | Q199: 2000
A200: =MAX(A$2:A199)+1 -> 199 | J200: 50 | M200: 29987 | N200: 30000 | O200: 44 | P200: 1320000 | Q200: 2000
... 881 more rows

Sheet ورقة1
A1: رقم الورقة | B1: مبلغ المنافسيت | C1: الكمية المستلمة (طن) | D1: الكمية المسلمة (طن) | E1: أجور النقل | F1: الرسوم الكمركية
A2: 1 | B2: 500 | C2: 341007 | D2: 341137 | E2: 15010028 | F2: 20000
A3: 2 | B3: 500 | C3: 299182 | D3: 299312 | E3: 13169728 | F3: 20000
A4: 3
A5: 4
A6: 5
A7: 6
A8: 7
A9: 8
A10: 9
A11: 10
A12: 11
A13: 12
A14: 13
A15: 14
A16: 15
A17: 16
A18: 17
A19: 18
A20: 19
A21: 20
A22: 21
A23: 22
A24: 23
A25: 24
A26: 25
A27: 26
A28: 27
A29: 28
A30: 29
A31: 30
A32: 31
A33: 32
A34: 33
A35: 34
A36: 35
A37: 36
A38: 37
A39: 38
A40: 39
A41: 40
A42: 41
A43: 42
A44: 43
A45: 44
A46: 45
A47: 46
A48: 47
A49: 48
A50: 49
A51: 50
A52: 51
A53: 52
A54: 53
A55: 54
A56: 55
A57: 56
A58: 57
A59: 58
A60: 59
A61: 60
A62: 61
A63: 62
A64: 63
A65: 64
A66: 65
A67: 66
A68: 67
A69: 68
A70: 69
A71: 70
A72: 71
A73: 72
A74: 73
A75: 74
A76: 75
A77: 76
A78: 77
A79: 78
A80: 79
A81: 80
A82: 81
A83: 82
A84: 83
A85: 84
A86: 85
A87: 86
A88: 87
A89: 88
A90: 89
